[Event "17th Memorial Lezcano Montalvo 2025"]
[Site "Gran Canaria"]
[Date "2025.04.16"]
[Round "5.40"]
[White "Blanco Barros, Juan Carlos"]
[Black "Grube, Kurt"]
[Result "1-0"]
[Annotator "RC"]
[ECO "B86"]
[WhiteElo "1941"]
[BlackElo "1732"]
[PlyCount "152"]
[EventDate "2025.04.13"]
[EventType "swiss"]
[EventCountry "ESP"]
[SourceTitle "playchess.com"]
[Source "ChessBase"]
[SourceQuality "1"]
[TimeControl "5400+30"]

1. e4 {[%emt 0:00:08]} c5 {[%emt 0:00:04]} 2. Nf3 {[%emt 0:00:29]} Nc6 {[%emt 0:00:24]} 3. d4 {[%emt 0:02:43]} cxd4 {[%emt 0:00:11]} 4. Nxd4 {[%emt 0:00:09]} Nf6 {[%emt 0:00:39]} 5. Nc3 {[%emt 0:00:09]} a6 {[%emt 0:00:25]} 6. Bc4 {[%emt 0:00:23]} e6 {[%emt 0:01:48]} 7. O-O {[%emt 0:07:07]} Be7 {[%emt 0:01:17]} 8. Bb3 {[%emt 0:01:17]} O-O {[%emt 0:00:33]} 9. Be3 {[%emt 0:00:39]} Na5 {[%emt 0:09:19]} 10. f4 {[%emt 0:05:24]} d6 {[%emt 0:02:07]} 11. f5 {[%emt 0:05:53]} Nxb3 {[%emt 0:03:20]} 12. axb3 {[%emt 0:00:12]} Bd7 {[%emt 0:03:58]} 13. Qf3 {[%emt 0:03:07]} e5 {[%emt 0:02:20]} 14. Nde2 {[%emt 0:00:24]} Bc6 {[%emt 0:00:25]} 15. Rad1 {[%emt 0:05:43]} Qc7 {[%emt 0:02:04]} 16. Ng3 {[%emt 0:04:26]} Rad8 {[%emt 0:05:38]} 17. Bg5 {[%emt 0:02:24]} Ne8 {[%emt 0:05:53]} 18. Bxe7 {[%emt 0:05:49]} Qxe7 {[%emt 0:00:08]} 19. Nd5 {[%emt 0:02:26]} Bxd5 {[%emt 0:02:35]} 20. Rxd5 {[%emt 0:00:09]} Nf6 {[%emt 0:01:04]} 21. Rd3 {[%emt 0:00:13]} Qc7 {[%emt 0:00:56]} 22. Rf2 {[%emt 0:03:26]} Rfe8 {[%emt 0:04:52]} 23. Nh5 {[%emt 0:00:35]} Nxh5 {[%emt 0:02:24]} 24. Qxh5 {[%emt 0:00:03]} f6 {[%emt 0:11:15]} 25. Rfd2 {[%emt 0:18:22]} Re7 {[%emt 0:01:04]} 26. Kh1 {[%emt 0:00:14]} Red7 {[%emt 0:02:38]} 27. Qe2 {[%emt 0:01:50]} Qa5 {[%emt 0:02:52]} 28. c4 {[%emt 0:04:41]} Qc5 {[%emt 0:03:14]} 29. Qd1 {[%emt 0:01:53]} Qc6 {[%emt 0:03:47]} 30. Rd5 {[%emt 0:00:40]} b6 {[%emt 0:01:14]} 31. h3 {[%emt 0:00:21]} Kf7 {[%emt 0:02:41]} 32. Qh5+ {[%emt 0:02:06]} Kg8 {[%emt 0:00:02]} 33. Qe2 {[%emt 0:00:20]} a5 {[%emt 0:01:37]} 34. Kh2 {[%emt 0:02:19]} Qc7 {[%emt 0:05:09]} 35. Qd3 {[%emt 0:00:15]} Kf7 {[%emt 0:00:37]} 36. Rb5 {[%emt 0:00:09]} Qc6 {[%emt 0:02:55]} 37. Qd5+ {[%emt 0:00:28]} Qxd5 {[%emt 0:00:10]} 38. Rdxd5 {[%emt 0:00:15]} Ke7 {[%emt 0:04:15]} 39. Rxb6 {[%emt 0:00:18]} Ra8 {[%emt 0:00:35]} 40. Rd2 {[%emt 0:03:16]} a4 {[%emt 0:01:04]} 41. bxa4 {[%emt 0:00:35]} Rxa4 {[%emt 0:00:02]} 42. b3 {[%emt 0:00:15]} Ra1 {[%emt 0:03:29]} 43. Kg3 {[%emt 0:00:10]} Raa7 {[%emt 0:00:49]} 44. Kf3 {[%emt 0:00:15]} Rab7 {[%emt 0:00:19]} 45. Rxb7 {[%emt 0:00:30]} Rxb7 {[%emt 0:00:01]} 46. Rb2 {[%emt 0:00:02]} Rb4 {[%emt 0:01:07]} 47. Ke3 {[%emt 0:00:12]} Kd7 {[%emt 0:00:45]} 48. Kd3 {[%emt 0:00:02]} Kc6 {[%emt 0:00:14]} 49. Kc3 {[%emt 0:00:10]} Rb7 {[%emt 0:01:00]} 50. Ra2 {[%emt 0:00:03]} g6 {[%emt 0:01:20]} 51. fxg6 {[%emt 0:01:38]} hxg6 {[%emt 0:00:01]} 52. Rf2 {[%emt 0:00:10]} Rf7 {[%emt 0:00:27]} 53. b4 {[%emt 0:00:08]} f5 {[%emt 0:00:23]} 54. g3 {[%emt 0:00:32]} f4 {[%emt 0:02:18]} 55. gxf4 {[%emt 0:01:49]} exf4 {[%emt 0:00:14]} 56. h4 {[%emt 0:00:11]} Kb6 {[%emt 0:02:30]} 57. Kd4 {[%emt 0:00:12]} Rf6 {[%emt 0:00:23]} 58. Rf3 {[%emt 0:00:36]} Kc6 {[%emt 0:00:32]} 59. e5 {[%emt 0:01:28]} Rf5 {[%emt 0:01:07]} 60. exd6 {[%emt 0:01:24]} Kxd6 {[%emt 0:05:56]} 61. b5 {[%emt 0:01:10]} g5 {[%emt 0:00:00]} 62. hxg5 {[%emt 0:00:15]} Rxg5 {[%emt 0:00:00]} 63. Rxf4 {[%emt 0:00:16]} Rg1 {[%emt 0:00:00]} 64. c5+ {[%emt 0:00:35]} Ke6 {[%emt 0:00:00]} 65. Re4+ {[%emt 0:00:22]} Kd7 {[%emt 0:00:00]} 66. Rh4 {[%emt 0:00:28]} Rd1+ {[%emt 0:00:00]} 67. Kc4 {[%emt 0:00:01]} Rc1+ {[%emt 0:00:00]} 68. Kb4 {[%emt 0:00:02]} Rc2 {[%emt 0:00:00]} 69. Rh7+ {[%emt 0:00:35]} Ke6 {[%emt 0:00:00]} 70. Rh6+ {[%emt 0:00:03]} Kd7 {[%emt 0:00:00]} 71. Rd6+ {[%emt 0:00:29]} Kc7 {[%emt 0:00:02]} 72. b6+ {[%emt 0:00:35]} Kb7 {[%emt 0:00:02]} 73. Rd7+ {[%emt 0:00:12]} Kc8 {[%emt 0:00:45]} 74. Rc7+ {[%emt 0:00:06]} Kb8 {[%emt 0:00:34]} 75. Kb5 {[%emt 0:00:09]} Rh2 {[%emt 0:01:33]} 76. Rg7 {[%emt 0:00:10]} Rh5 {[%emt 0:05:04]} 1-0

[Event "17th Memorial Lezcano Montalvo 2025"]
[Site "Gran Canaria"]
[Date "2025.04.16"]
[Round "5.41"]
[White "Vega Garcia, Jesus Manuel"]
[Black "de Leon Navarro, Claudio"]
[Result "0-1"]
[Annotator "RC"]
[ECO "E16"]
[WhiteElo "1725"]
[BlackElo "1918"]
[PlyCount "89"]
[EventDate "2025.04.13"]
[EventType "swiss"]
[EventCountry "ESP"]
[SourceTitle "playchess.com"]
[Source "ChessBase"]
[SourceQuality "1"]
[TimeControl "5400+30"]

1. d4 {[%emt 0:00:03]} Nf6 {[%emt 0:12:51]} 2. c4 {[%emt 0:00:14]} b6 {[%emt 0:00:00]} 3. Nf3 {[%emt 0:00:52]} e6 {[%emt 0:01:00]} 4. g3 {[%emt 0:00:28]} Bb4+ {[%emt 0:00:57]} 5. Bd2 {[%emt 0:00:10]} Bxd2+ {[%emt 0:00:11]} 6. Qxd2 {[%emt 0:00:13]} Bb7 {[%emt 0:00:00]} 7. Bg2 {[%emt 0:00:36]} O-O {[%emt 0:00:24]} 8. O-O {[%emt 0:00:52]} c5 {[%emt 0:04:15]} 9. d5 {[%emt 0:10:06]} exd5 {[%emt 0:02:41]} 10. Nh4 {[%emt 0:01:30]} Qc7 {[%emt 0:14:53]} 11. cxd5 {[%emt 0:02:40]} d6 {[%emt 0:02:45]} 12. Nc3 {[%emt 0:00:57]} Qd7 {[%emt 0:02:48]} 13. Qf4 {[%emt 0:04:09]} a6 {[%emt 0:22:38]} 14. Nf5 {[%emt 0:12:14]} Ne8 {[%emt 0:02:00]} 15. Rad1 {[%emt 0:16:35]} g6 {[%emt 0:03:29]} 16. Nh6+ {[%emt 0:12:09]} Kg7 {[%emt 0:05:28]} 17. Ne4 {[%emt 0:05:08]} Bc8 {[%emt 0:06:03]} 18. Rd3 {[%emt 0:10:51]} f6 {[%emt 0:05:28]} 19. Rf3 {[%emt 0:03:36]} Qe7 {[%emt 0:01:28]} 20. Re3 {[%emt 0:08:35]} Qd8 {[%emt 0:05:25]} 21. h4 {[%emt 0:01:44]} Ra7 {[%emt 0:01:26]} 22. Rf3 {[%emt 0:03:39]} Qe7 {[%emt 0:00:09]} 23. h5 {[%emt 0:00:58]} Qe5 {[%emt 0:00:32]} 24. Qe3 {[%emt 0:01:21]} Qxh5 {[%emt 0:00:50]} 25. Rf4 {[%emt 0:01:39]} Qxh6 {[%emt 0:00:33]} 26. Bf3 {[%emt 0:00:30]} g5 {[%emt 0:01:24]} 27. Nxg5 {[%emt 0:00:44]} fxg5 {[%emt 0:00:38]} 28. Qc3+ {[%emt 0:01:01]} Kg8 {[%emt 0:01:04]} 29. Re4 {[%emt 0:00:41]} Raf7 {[%emt 0:01:20]} 30. Qe3 {[%emt 0:00:40]} Qf6 {[%emt 0:00:28]} 31. Kg2 {[%emt 0:00:17]} Ng7 {[%emt 0:00:30]} 32. g4 {[%emt 0:00:17]} Nd7 {[%emt 0:00:14]} 33. Rh1 {[%emt 0:00:44]} Ne5 {[%emt 0:00:13]} 34. Rxe5 {[%emt 0:00:42]} Qxe5 {[%emt 0:01:37]} 35. Qd3 {[%emt 0:00:19]} Bf5 {[%emt 0:00:38]} 36. gxf5 {[%emt 0:00:14]} Nxf5 {[%emt 0:00:35]} 37. Kf1 {[%emt 0:00:08]} Nh4 {[%emt 0:00:00]} 38. Kg1 {[%emt 0:01:15]} Nxf3+ {[%emt 0:00:11]} 39. exf3 {[%emt 0:00:07]} Qf5 {[%emt 0:01:20]} 40. Qd2 {[%emt 0:00:37]} Qxf3 {[%emt 0:00:07]} 41. Rh2 {[%emt 0:00:46]} Rf4 {[%emt 0:01:10]} 42. Qc2 {[%emt 0:00:25]} Qe4 {[%emt 0:01:06]} 43. Qd1 {[%emt 0:00:34]} Rg4+ {[%emt 0:00:25]} 44. Kf1 {[%emt 0:00:27]} Qc4+ {[%emt 0:00:11]} 45. Ke1 {[%emt 0:01:13]} 0-1

[Event "17th Memorial Lezcano Montalvo 2025"]
[Site "Gran Canaria"]
[Date "2025.04.16"]
[Round "5.42"]
[White "Ramos Santana, Marcelino"]
[Black "Arlet, Benjamin Andres"]
[Result "1/2-1/2"]
[Annotator "RC"]
[ECO "B23"]
[WhiteElo "1903"]
[BlackElo "1721"]
[PlyCount "113"]
[EventDate "2025.04.13"]
[EventType "swiss"]
[EventCountry "ESP"]
[SourceTitle "playchess.com"]
[Source "ChessBase"]
[SourceQuality "1"]
[TimeControl "5400+30"]

1. e4 {[%emt 0:04:34]} c5 {[%emt 0:11:46]} 2. Nc3 {[%emt 0:01:08]} e6 {[%emt 0:00:39]} 3. g3 {[%emt 0:00:41]} d5 {[%emt 0:00:39]} 4. exd5 {[%emt 0:01:23]} exd5 {[%emt 0:00:06]} 5. Bg2 {[%emt 0:00:21]} Nf6 {[%emt 0:01:32]} 6. d3 {[%emt 0:00:28]} h6 {[%emt 0:01:44]} 7. Nge2 {[%emt 0:00:28]} d4 {[%emt 0:02:32]} 8. Ne4 {[%emt 0:01:47]} Nc6 {[%emt 0:00:39]} 9. O-O {[%emt 0:01:27]} Be7 {[%emt 0:01:30]} 10. Nf4 {[%emt 0:00:45]} O-O {[%emt 0:01:00]} 11. Nh5 {[%emt 0:17:44]} Nd5 {[%emt 0:08:14]} 12. Nf4 {[%emt 0:06:07]} Nxf4 {[%emt 0:17:33]} 13. gxf4 {[%emt 0:01:49]} f5 {[%emt 0:05:00]} 14. Nd2 {[%emt 0:05:34]} Qc7 {[%emt 0:00:23]} 15. Nc4 {[%emt 0:03:26]} Bd7 {[%emt 0:01:30]} 16. a4 {[%emt 0:01:08]} g6 {[%emt 0:08:18]} 17. Re1 {[%emt 0:00:41]} Bf6 {[%emt 0:00:59]} 18. Bd2 {[%emt 0:00:38]} Rad8 {[%emt 0:06:30]} 19. Qf3 {[%emt 0:00:44]} b6 {[%emt 0:01:56]} 20. Ne5 {[%emt 0:04:30]} Ne7 {[%emt 0:06:00]} 21. Nxd7 {[%emt 0:03:36]} Rxd7 {[%emt 0:00:11]} 22. Re6 {[%emt 0:00:42]} Rd6 {[%emt 0:03:10]} 23. Rae1 {[%emt 0:03:11]} Rxe6 {[%emt 0:00:13]} 24. Rxe6 {[%emt 0:00:05]} Qd7 {[%emt 0:00:01]} 25. Qe2 {[%emt 0:00:20]} Kf7 {[%emt 0:00:21]} 26. Rxf6+ {[%emt 0:07:08]} Kxf6 {[%emt 0:00:10]} 27. b3 {[%emt 0:00:16]} Re8 {[%emt 0:02:36]} 28. Qf3 {[%emt 0:01:08]} Nc8 {[%emt 0:00:47]} 29. h4 {[%emt 0:00:49]} h5 {[%emt 0:00:57]} 30. c3 {[%emt 0:03:01]} Qe6 {[%emt 0:00:31]} 31. cxd4 {[%emt 0:00:49]} cxd4 {[%emt 0:00:06]} 32. Kh2 {[%emt 0:03:17]} Qxb3 {[%emt 0:05:22]} 33. Qc6+ {[%emt 0:02:09]} Qe6 {[%emt 0:00:08]} 34. Qf3 {[%emt 0:00:16]} a5 {[%emt 0:00:53]} 35. Bc1 {[%emt 0:01:02]} Qd6 {[%emt 0:01:18]} 36. Bb2 {[%emt 0:01:05]} Ne7 {[%emt 0:00:37]} 37. Kg3 {[%emt 0:05:07]} Rc8 {[%emt 0:00:37]} 38. Qe2 {[%emt 0:00:09]} Nc6 {[%emt 0:01:27]} 39. Qc2 {[%emt 0:00:24]} Ne7 {[%emt 0:00:45]} 40. Qb3 {[%emt 0:02:21]} Qb4 {[%emt 0:00:16]} 41. Qa2 {[%emt 0:00:37]} Qc5 {[%emt 0:04:11]} 42. Ba3 {[%emt 0:01:16]} Qc2 {[%emt 0:00:11]} 43. Bxe7+ {[%emt 0:01:21]} Kxe7 {[%emt 0:00:05]} 44. Qd5 {[%emt 0:00:24]} Qxd3+ {[%emt 0:00:24]} 45. Kh2 {[%emt 0:00:25]} Qc4 {[%emt 0:02:07]} 46. Qe5+ {[%emt 0:01:04]} Qe6 {[%emt 0:00:16]} 47. Qg7+ {[%emt 0:00:30]} Kd6 {[%emt 0:00:17]} 48. Qxd4+ {[%emt 0:00:12]} Ke7 {[%emt 0:01:41]} 49. Qg7+ {[%emt 0:00:28]} Qf7 {[%emt 0:00:00]} 50. Qe5+ {[%emt 0:00:39]} Qe6 {[%emt 0:02:54]} 51. Qg7+ {[%emt 0:00:35]} Kd6 {[%emt 0:00:01]} 52. Qd4+ {[%emt 0:00:31]} Kc7 {[%emt 0:00:01]} 53. Qg7+ {[%emt 0:00:16]} Qd7 {[%emt 0:01:28]} 54. Qe5+ {[%emt 0:01:05]} Qd6 {[%emt 0:02:26]} 55. Qg7+ {[%emt 0:00:17]} Kd8 {[%emt 0:00:10]} 56. Qh8+ {[%emt 0:01:17]} Kd7 {[%emt 0:00:14]} 57. Qg7+ {[%emt 0:00:38]} 1/2-1/2

[Event "17th Memorial Lezcano Montalvo 2025"]
[Site "Gran Canaria"]
[Date "2025.04.16"]
[Round "5.43"]
[White "Martinez Correa, Rafael"]
[Black "Hernandez Guerra, Luna Yue"]
[Result "1/2-1/2"]
[Annotator "NA RC"]
[ECO "B10"]
[WhiteElo "1719"]
[BlackElo "1897"]
[PlyCount "120"]
[EventDate "2025.04.13"]
[EventType "swiss"]
[EventCountry "ESP"]
[SourceTitle "playchess.com"]
[Source "ChessBase"]
[SourceQuality "1"]
[TimeControl "5400+30"]

1. e4 {[%emt 0:00:01]} c6 {[%emt 0:00:07]} 2. Nf3 {[%emt 0:00:10]} d5 {[%emt 0:00:06]} 3. exd5 {[%emt 0:00:10]} cxd5 {[%emt 0:00:07]} 4. Ne5 {[%emt 0:00:11]} a6 {[%emt 0:00:06]} 5. d4 {[%emt 0:00:10]} Nc6 {[%emt 0:00:17]} 6. c3 {[%emt 0:00:13]} Nxe5 {[%emt 0:00:09]} 7. dxe5 {[%emt 0:00:09]} Bf5 {[%emt 0:00:17]} 8. Bd3 {[%emt 0:00:07]} Bxd3 {[%emt 0:00:26]} 9. Qxd3 {[%emt 0:00:09]} e6 {[%emt 0:00:05]} 10. O-O {[%emt 0:01:00]} Qc7 {[%emt 0:00:36]} 11. Re1 {[%emt 0:00:33]} Ne7 {[%emt 0:00:52]} 12. Nd2 {[%emt 0:01:28]} Nf5 {[%emt 0:01:36]} 13. Nf3 {[%emt 0:00:30]} Rc8 {[%emt 0:00:10]} 14. Be3 {[%emt 0:04:16]} Be7 {[%emt 0:03:35]} 15. a4 {[%emt 0:05:39]} O-O {[%emt 0:10:08]} 16. a5 {[%emt 0:06:50]} Qc4 {[%emt 0:03:54]} 17. Qd1 {[%emt 0:06:50]} Qb5 {[%emt 0:05:32]} 18. Qd2 {[%emt 0:04:22]} Rc4 {[%emt 0:12:42]} 19. Nd4 {[%emt 0:04:09]} Nxd4 {[%emt 0:02:51]} 20. Bxd4 {[%emt 0:00:53]} Qb3 {[%emt 0:04:41]} 21. g3 {[%emt 0:09:12]} Rfc8 {[%emt 0:03:17]} 22. Kg2 {[%emt 0:01:23]} h6 {[%emt 0:02:38]} 23. h4 {[%emt 0:02:12]} Bc5 {[%emt 0:03:24]} 24. Bxc5 {[%emt 0:00:32]} R4xc5 {[%emt 0:00:24]} 25. Ra3 {[%emt 0:05:34]} Qb5 {[%emt 0:00:54]} 26. Qe2 {[%emt 0:06:42]} Rc4 {[%emt 0:07:14]} 27. Rd1 {[%emt 0:02:52]} Qc5 {[%emt 0:07:05]} 28. Qf3 {[%emt 0:05:43]} Rc7 {[%emt 0:06:53]} 29. Re1 {[%emt 0:05:05]} Qb5 {[%emt 0:03:58]} 30. Re2 {[%emt 0:02:20]} Re4 {[%emt 0:05:04]} 31. Rxe4 {[%emt 0:01:52]} dxe4 {[%emt 0:00:05]} 32. Qxe4 {[%emt 0:01:24]} Qxb2 {[%emt 0:00:04]} 33. Qb4 {[%emt 0:01:35]} Qe2 {[%emt 0:01:19]} 34. Qf4 {[%emt 0:04:00]} Rc4 {[%emt 0:05:45]} 35. Qf3 {[%emt 0:00:23]} Qb2 {[%emt 0:03:31]} 36. Qd3 {[%emt 0:01:04]} Rc8 {[%emt 0:00:31]} 37. Qd7 {[%emt 0:02:38]} Rxc3 {[%emt 0:01:11]} 38. Rxc3 {[%emt 0:02:44]} Qxc3 {[%emt 0:00:04]} 39. Qe8+ {[%emt 0:00:12]} Kh7 {[%emt 0:00:06]} 40. Qxf7 {[%emt 0:00:16]} Qxe5 {[%emt 0:00:14]} 41. h5 {[%emt 0:02:00]} Qf5 {[%emt 0:01:58]} 42. Qe8 {[%emt 0:01:49]} e5 {[%emt 0:01:49]} 43. Qe7 {[%emt 0:02:17]} Qxh5 {[%emt 0:01:36]} 44. Qxb7 {[%emt 0:00:17]} Qe2 {[%emt 0:00:06]} 45. Qc8 {[%emt 0:01:00]} Qe4+ {[%emt 0:00:29]} 46. Kg1 {[%emt 0:01:05]} Qd3 {[%emt 0:01:11]} 47. Qe6 {[%emt 0:01:08]} Qb5 {[%emt 0:02:08]} 48. Qf5+ {[%emt 0:00:33]} Kg8 {[%emt 0:00:05]} 49. Qe6+ {[%emt 0:00:41]} Kf8 {[%emt 0:00:05]} 50. Qc8+ {[%emt 0:01:39]} Ke7 {[%emt 0:01:51]} 51. Qc7+ {[%emt 0:00:09]} Ke6 {[%emt 0:00:48]} 52. Qxg7 {[%emt 0:00:46]} Qxa5 {[%emt 0:01:21]} 53. Qg6+ {[%emt 0:00:33]} Kd5 {[%emt 0:00:19]} 54. Qd3+ {[%emt 0:00:45]} Kc5 {[%emt 0:00:26]} 55. Qe3+ {[%emt 0:00:14]} Kc4 {[%emt 0:00:36]} 56. Qxh6 {[%emt 0:00:30]} Qe1+ {[%emt 0:00:28]} 57. Kg2 {[%emt 0:00:18]} Qe4+ {[%emt 0:00:55]} 58. Kh2 {[%emt 0:00:36]} Kb5 {[%emt 0:00:34]} 59. Qh8 {[%emt 0:01:05]} Kc5 {[%emt 0:00:38]} 60. Qf8+ {[%emt 0:00:29]} Kb6 {[%emt 0:00:31]} 1/2-1/2

[Event "17th Memorial Lezcano Montalvo 2025"]
[Site "Gran Canaria"]
[Date "2025.04.16"]
[Round "5.44"]
[White "Fernandez Hernandez, Javier"]
[Black "Lascar, Radoslawa"]
[Result "0-1"]
[Annotator "NA RC"]
[ECO "A16"]
[WhiteElo "1689"]
[BlackElo "1897"]
[PlyCount "56"]
[EventDate "2025.04.13"]
[EventType "swiss"]
[EventCountry "ESP"]
[SourceTitle "playchess.com"]
[Source "ChessBase"]
[SourceQuality "1"]
[TimeControl "5400+30"]

1. c4 {[%emt 0:00:02]} Nf6 {[%emt 0:00:24]} 2. Nc3 {[%emt 0:00:08]} g6 {[%emt 0:00:22]} 3. b3 {[%emt 0:00:10]} Bg7 {[%emt 0:00:26]} 4. Bb2 {[%emt 0:00:06]} O-O {[%emt 0:00:34]} 5. h4 {[%emt 0:00:17]} d5 {[%emt 0:05:26]} 6. Nxd5 {[%emt 0:05:10]} Nxd5 {[%emt 0:02:36]} 7. Bxg7 {[%emt 0:02:38]} Kxg7 {[%emt 0:00:16]} 8. cxd5 {[%emt 0:00:11]} Qxd5 {[%emt 0:00:21]} 9. h5 {[%emt 0:00:10]} Nc6 {[%emt 0:13:04]} 10. Rc1 {[%emt 0:02:08]} e5 {[%emt 0:04:51]} 11. hxg6 {[%emt 0:03:59]} hxg6 {[%emt 0:11:36]} 12. Rc4 {[%emt 0:02:23]} Be6 {[%emt 0:09:42]} 13. Rch4 {[%emt 0:07:14]} Rh8 {[%emt 0:02:08]} 14. e4 {[%emt 0:03:07]} Qa5 {[%emt 0:05:53]} 15. f4 {[%emt 0:01:38]} Rxh4 {[%emt 0:06:26]} 16. Rxh4 {[%emt 0:00:14]} exf4 {[%emt 0:00:53]} 17. Nf3 {[%emt 0:02:31]} f6 {[%emt 0:04:12]} 18. Rxf4 {[%emt 0:01:19]} g5 {[%emt 0:01:42]} 19. Nxg5 {[%emt 0:08:59]} Qxg5 {[%emt 0:00:38]} 20. Rf2 {[%emt 0:04:12]} Nd4 {[%emt 0:00:38]} 21. Qc1 {[%emt 0:00:59]} c5 {[%emt 0:01:41]} 22. b4 {[%emt 0:00:27]} Rc8 {[%emt 0:02:05]} 23. b5 {[%emt 0:01:38]} c4 {[%emt 0:01:39]} 24. Qc3 {[%emt 0:00:17]} Qe5 {[%emt 0:01:48]} 25. a4 {[%emt 0:00:34]} Qxe4+ {[%emt 0:01:50]} 26. Be2 {[%emt 0:05:42]} Qe5 {[%emt 0:00:10]} 27. g4 {[%emt 0:00:20]} Rh8 {[%emt 0:00:21]} 28. d3 {[%emt 0:00:44]} Nf3+ {[%emt 0:00:34]} 0-1

[Event "17th Memorial Lezcano Montalvo 2025"]
[Site "Gran Canaria"]
[Date "2025.04.16"]
[Round "5.45"]
[White "Garcia Rodriguez, Adriana"]
[Black "Peraza Concepcion, Airam"]
[Result "1-0"]
[Annotator "NA RC"]
[ECO "C45"]
[WhiteElo "1893"]
[BlackElo "1712"]
[PlyCount "89"]
[EventDate "2025.04.13"]
[EventType "swiss"]
[EventCountry "ESP"]
[SourceTitle "playchess.com"]
[Source "ChessBase"]
[SourceQuality "1"]
[TimeControl "5400+30"]

1. e4 {[%emt 0:00:08]} e5 {[%emt 0:00:28]} 2. Nf3 {[%emt 0:00:14]} Nc6 {[%emt 0:00:17]} 3. d4 {[%emt 0:00:21]} exd4 {[%emt 0:00:32]} 4. Nxd4 {[%emt 0:00:15]} Bc5 {[%emt 0:00:13]} 5. Nb3 {[%emt 0:00:31]} Bb4+ {[%emt 0:02:54]} 6. c3 {[%emt 0:02:37]} Be7 {[%emt 0:02:30]} 7. Bf4 {[%emt 0:04:33]} d6 {[%emt 0:08:55]} 8. Be2 {[%emt 0:13:05]} Nf6 {[%emt 0:04:08]} 9. N1d2 {[%emt 0:00:13]} Be6 {[%emt 0:02:14]} 10. Nd4 {[%emt 0:02:56]} Nxd4 {[%emt 0:19:23]} 11. cxd4 {[%emt 0:00:13]} O-O {[%emt 0:00:32]} 12. O-O {[%emt 0:00:11]} Re8 {[%emt 0:03:37]} 13. Bd3 {[%emt 0:03:14]} h6 {[%emt 0:02:23]} 14. Bb1 {[%emt 0:09:06]} Bf8 {[%emt 0:03:57]} 15. h4 {[%emt 0:21:04]} g6 {[%emt 0:18:53]} 16. Bh2 {[%emt 0:08:40]} Ng4 {[%emt 0:01:53]} 17. Bg3 {[%emt 0:00:31]} Nf6 {[%emt 0:02:26]} 18. f4 {[%emt 0:08:40]} Bg4 {[%emt 0:08:15]} 19. Qb3 {[%emt 0:02:48]} Nh5 {[%emt 0:02:35]} 20. a3 {[%emt 0:07:51]} b6 {[%emt 0:01:08]} 21. Kh2 {[%emt 0:02:39]} Be2 {[%emt 0:04:29]} 22. Rf2 {[%emt 0:00:24]} Bg4 {[%emt 0:00:05]} 23. e5 {[%emt 0:05:33]} d5 {[%emt 0:01:39]} 24. f5 {[%emt 0:01:10]} gxf5 {[%emt 0:02:00]} 25. Bxf5 {[%emt 0:00:13]} Bxf5 {[%emt 0:00:08]} 26. Rxf5 {[%emt 0:00:01]} Ng7 {[%emt 0:00:08]} 27. Rf2 {[%emt 0:06:49]} Nh5 {[%emt 0:03:02]} 28. Raf1 {[%emt 0:00:00]} Re7 {[%emt 0:01:30]} 29. Rf5 {[%emt 0:00:00]} Ng7 {[%emt 0:00:30]} 30. R5f2 {[%emt 0:00:00]} Nh5 {[%emt 0:00:11]} 31. Rf5 {[%emt 0:00:17]} Ng7 {[%emt 0:00:31]} 32. R5f4 {[%emt 0:00:15]} h5 {[%emt 0:03:38]} 33. Qf3 {[%emt 0:01:28]} Qd7 {[%emt 0:01:04]} 34. Qf2 {[%emt 0:00:50]} Rc8 {[%emt 0:00:27]} 35. Nf3 {[%emt 0:00:34]} Ne6 {[%emt 0:00:16]} 36. Rf5 {[%emt 0:00:10]} Ng7 {[%emt 0:00:01]} 37. Rg5 {[%emt 0:00:33]} Kh8 {[%emt 0:01:10]} 38. Nd2 {[%emt 0:00:10]} Qe6 {[%emt 0:00:37]} 39. Qf6 {[%emt 0:00:30]} Kg8 {[%emt 0:00:28]} 40. Rff5 {[%emt 0:00:54]} c5 {[%emt 0:00:20]} 41. Nf3 {[%emt 0:00:34]} c4 {[%emt 0:00:45]} 42. Be1 {[%emt 0:00:14]} a5 {[%emt 0:00:39]} 43. Rg3 {[%emt 0:00:15]} Kh7 {[%emt 0:00:31]} 44. Ng5+ {[%emt 0:00:03]} Kh8 {[%emt 0:00:25]} 45. Nxe6 {[%emt 0:00:10]} 1-0

[Event "17th Memorial Lezcano Montalvo 2025"]
[Site "Gran Canaria"]
[Date "2025.04.16"]
[Round "5.46"]
[White "Fernandez De La Hoz A., Carlos"]
[Black "Gonzalez Perdomo, Sergio"]
[Result "1/2-1/2"]
[Annotator "NA RC"]
[ECO "B59"]
[WhiteElo "1687"]
[BlackElo "1880"]
[PlyCount "88"]
[EventDate "2025.04.13"]
[EventType "swiss"]
[EventCountry "ESP"]
[SourceTitle "playchess.com"]
[Source "ChessBase"]
[SourceQuality "1"]
[TimeControl "5400+30"]

1. e4 {[%emt 0:02:50]} c5 {[%emt 0:00:05]} 2. Nf3 {[%emt 0:00:32]} Nc6 {[%emt 0:00:38]} 3. d4 {[%emt 0:00:19]} cxd4 {[%emt 0:00:00]} 4. Nxd4 {[%emt 0:00:57]} d6 {[%emt 0:00:00]} 5. Nc3 {[%emt 0:01:41]} Nf6 {[%emt 0:00:00]} 6. Be2 {[%emt 0:07:11]} e5 {[%emt 0:02:27]} 7. Nb3 {[%emt 0:01:03]} Be7 {[%emt 0:00:27]} 8. Be3 {[%emt 0:06:13]} Be6 {[%emt 0:00:29]} 9. O-O {[%emt 0:07:33]} O-O {[%emt 0:00:21]} 10. Qc1 {[%emt 0:15:41]} a5 {[%emt 0:01:23]} 11. Rd1 {[%emt 0:03:04]} Ng4 {[%emt 0:05:28]} 12. Bxg4 {[%emt 0:06:08]} Bxg4 {[%emt 0:00:17]} 13. f3 {[%emt 0:00:13]} Be6 {[%emt 0:00:37]} 14. Nd5 {[%emt 0:05:20]} Bxd5 {[%emt 0:12:52]} 15. exd5 {[%emt 0:00:19]} Nb8 {[%emt 0:01:00]} 16. Nd2 {[%emt 0:02:40]} Nd7 {[%emt 0:00:50]} 17. Ne4 {[%emt 0:00:54]} h6 {[%emt 0:01:25]} 18. c4 {[%emt 0:00:56]} f5 {[%emt 0:00:38]} 19. Nc3 {[%emt 0:00:49]} Rc8 {[%emt 0:01:56]} 20. Nb5 {[%emt 0:01:14]} Nc5 {[%emt 0:00:31]} 21. Qc2 {[%emt 0:02:59]} Qb6 {[%emt 0:04:43]} 22. Kh1 {[%emt 0:01:31]} Bg5 {[%emt 0:03:08]} 23. Bg1 {[%emt 0:00:50]} Qd8 {[%emt 0:02:14]} 24. a3 {[%emt 0:01:07]} a4 {[%emt 0:01:52]} 25. Bxc5 {[%emt 0:00:46]} Rxc5 {[%emt 0:00:31]} 26. Qxa4 {[%emt 0:00:06]} Bf4 {[%emt 0:03:24]} 27. g3 {[%emt 0:01:56]} Be3 {[%emt 0:00:39]} 28. Qc2 {[%emt 0:01:38]} Qf6 {[%emt 0:03:07]} 29. b3 {[%emt 0:01:14]} h5 {[%emt 0:04:27]} 30. Qe2 {[%emt 0:01:51]} Qh6 {[%emt 0:01:08]} 31. Nxd6 {[%emt 0:01:18]} Bd4 {[%emt 0:03:11]} 32. Nxb7 {[%emt 0:03:54]} Rc7 {[%emt 0:00:06]} 33. Na5 {[%emt 0:01:24]} Bxa1 {[%emt 0:00:22]} 34. Rxa1 {[%emt 0:00:08]} Qd6 {[%emt 0:01:10]} 35. Nc6 {[%emt 0:01:44]} f4 {[%emt 0:03:23]} 36. Qe4 {[%emt 0:01:40]} fxg3 {[%emt 0:01:19]} 37. hxg3 {[%emt 0:00:02]} h4 {[%emt 0:00:45]} 38. g4 {[%emt 0:05:01]} Rf4 {[%emt 0:05:52]} 39. Qxe5 {[%emt 0:03:43]} Rxc6 {[%emt 0:00:55]} 40. Qe8+ {[%emt 0:00:11]} Rf8 {[%emt 0:00:30]} 41. Qxc6 {[%emt 0:00:39]} Qg3 {[%emt 0:00:22]} 42. d6 {[%emt 0:01:48]} Qh3+ {[%emt 0:04:46]} 43. Kg1 {[%emt 0:00:09]} Qg3+ {[%emt 0:00:20]} 44. Kh1 {[%emt 0:11:14]} Qh3+ 1/2-1/2